{"text_format":"1","workbook":"xlsx","n_sheets":3,"sheets":["Данные","Сотрудники","Наряд допуск"],"not_rendered":{"charts":0,"images":0,"macros":1,"external_links":0,"defined_names":3,"comments":0,"pivot_tables":0},"unopened":[],"bounds":{"document_bytes":16777216,"sheet_cells":100000,"rows_first":2000,"rows_last":500,"rows_between":2000,"halvings":0,"cell_chars":16384,"cell_head_chars":4096},"cells_cut":0,"cells_raw":0,"read":"whole","date_system":"1900"}

{"sheet":"Данные","index":0,"n_rows":7,"n_cols":3,"rows_kept":7,"cut":false,"hidden":false,"merged":[]}
[null,"день","месяц"]
["выдан","05","апреля"]
["Действителен","05","апреля"]
["Руководитель работ","Заместитель начальника участка","Чурсин В.В."]
["Начало работ","08","00"]
["Окончание работ","10","00"]
["Наряд выдал","Начальник участка","Скоробогатько И.Ю."]

{"sheet":"Сотрудники","index":1,"n_rows":73,"n_cols":8,"rows_kept":73,"cut":false,"hidden":false,"merged":[[0,0,0,7]]}
["УЧАТОК ПОДГОТОВИТЕЛЬНЫХ РАБОТ №6 ПК \"Центр-АБ\""]
["№ п/п","Структурное подразделение","Вахта"," Должность ","Табельный номер","Ф.И.О.","отработано часов","номер наряда"]
[5,null,null,"Участок подготовительных работ №4",null,"подраздел"]
[null,null,null,"Асфальтобетонщики (30человек по штату):",null,"подраздел"]
[3,"Асфальтобетонщики",2,"Асфальтобетонщик",26840,"Бахаев Пирдам Бахаевич",null,1]
[28,"Асфальтобетонщики",2,"Асфальтобетонщик",28809,"Белинин Игорь Валерьевич",null,1]
[26,"Асфальтобетонщики",2,"Асфальтобетонщик",26573,"Бендриков Александр Вячеславович",null,1]
[21,"Асфальтобетонщики",2,"Асфальтобетонщик",26686,"Бережной Дмитрий Владимирович",null,1]
[1,"Асфальтобетонщики",2,"Асфальтобетонщик",26801,"Вячин Максим Сергеевич",null,1]
[5,"Асфальтобетонщики",2,"Асфальтобетонщик",26620,"Гасымов Темур Исфандияр оглы",null,1]
[10,"Асфальтобетонщики",1,"Асфальтобетонщик",27560,"Горелый Сергей Николаевич",null,1]
[9,"Асфальтобетонщики",2,"Асфальтобетонщик",26574,"Жестков Даниил Анатольевич",null,1]
[24,"Асфальтобетонщики",2,"Асфальтобетонщик",37543,"Жулев Алексей Васильевич",null,1]
[20,"Асфальтобетонщики",2,"Асфальтобетонщик",26680,"Жулев Роман Васильевич"]
[6,"Асфальтобетонщики",2,"Асфальтобетонщик",32574,"Ильин Михаил Сергеевич"]
[30,"Асфальтобетонщики",1,"Асфальтобетонщик",29064,"Казаков Вадим Викторович"]
[7,"Асфальтобетонщики",1,"Асфальтобетонщик",27558,"Ковалев Олег Владимирович"]
[22,"Асфальтобетонщики",1,"Асфальтобетонщик",33881,"Козлов Василий Васильевич"]
[4,"Асфальтобетонщики",1,"Асфальтобетонщик",27565,"Кравцов Иван Александрович"]
[2,"Асфальтобетонщики",2,"Асфальтобетонщик",28468,"Крылов Юрий Анатольевич "]
[19,"Асфальтобетонщики",2,"Асфальтобетонщик",26666,"Латышев Михаил Анатольевич"]
[25,"Асфальтобетонщики",2,"Асфальтобетонщик",26688,"Лысенко Сергей Васильевич"]
[11,"Асфальтобетонщики",1,"Асфальтобетонщик",27557,"Макеев Сергей Владимирович"]
[16,"Асфальтобетонщики",1,"Асфальтобетонщик",27533,"Насибуллин Эмиль Зарифуллович"]
[23,"Асфальтобетонщики",2,"Асфальтобетонщик",26668,"Ремизов Владимир Александрович"]
[14,"Асфальтобетонщики",1,"Асфальтобетонщик",29107,"Сазонов Егор Александрович"]
[13,"Асфальтобетонщики",1,"Асфальтобетонщик",29117,"Сидоренко Михаил Алексеевич"]
[12,"Асфальтобетонщики",1,"Асфальтобетонщик",27567,"Скляров Денис Александрович"]
[29,"Асфальтобетонщики",2,"Асфальтобетонщик",28833,"Сысоев Виктор Сергеевич"]
[18,"Асфальтобетонщики",2,"Асфальтобетонщик",28771,"Такиев Валихан Патиханович"]
[8,"Асфальтобетонщики",1,"Асфальтобетонщик",29051,"Высоцкий Николай Петрович"]
[17,"Асфальтобетонщики",2,"Асфальтобетонщик",28602,"Трутнев Андрей Юрьевич "]
[27,"Асфальтобетонщики",2,"Асфальтобетонщик",28796,"Хорев Валерий Викторович"]
[15,"Асфальтобетонщики",1,"Асфальтобетонщик",27566,"Шабалин Сергей Александрович"]
[null,null,null,"Механизаторы (12 человек по штату):",null,"подраздел"]
[8,"Механизаторы",2,"Механизатор",9138,"Бармин Олег Иванович"]
[5,"Механизаторы",1,"Механизатор",27173,"Блашкин Сергей Иванович"]
[1,"Механизаторы",2,"Механизатор",26482,"Дрямов Александр Иванович"]
[9,"Механизаторы",2,"Механизатор",39261,"Дрямов Андрей Александрович"]
[12,"Механизаторы",2,"Механизатор",26506,"Исаев Юрий Владимирович"]
[7,"Механизаторы",1,"Механизатор",34397,"Косарецкий Александр Николаевич"]
[2,"Механизаторы",1,"Механизатор",29752,"Косарецкий Алексей Николаевич"]
[6,"Механизаторы",2,"Механизатор",41722,"Кисаров Владимир Александрович"]
[3,"Механизаторы",1,"Механизатор",19024,"Ушаков Виктор Александрович"]
[4,"Механизаторы",1,"Механизатор",27246,"Холин Евгений Михайлович"]
[10,"Механизаторы",null,"Механизатор"]
[11,"Механизаторы",null,"Механизатор"]
[null,null,null,"Дорожные рабочие (24человека по штату):",null,"подраздел"]
[3,"Дорожные рабочие",1,"Дорожный рабочий",32318,"Башаров Павел Геннадьевич"]
[4,"Дорожные рабочие",2,"Дорожный рабочий",42397,"Бондаренко Игорь Николаевич"]
[17,"Дорожные рабочие",2,"Дорожный рабочий",42409,"Буткоевский Игорь Николаевич"]
[11,"Дорожные рабочие",1,"Дорожный рабочий",27347,"Буткоевский Сергей Игоревич"]
[8,"Дорожные рабочие",1,"Дорожный рабочий",44328,"Савостиков Алексей Сергеевич"]
[24,"Дорожные рабочие",2,"Дорожный рабочий",42635,"Гапоченко Евгений Алексеевич"]
[5,"Дорожные рабочие",1,"Дорожный рабочий",40140,"Голофаст Александр Александрович"]
[6,"Дорожные рабочие",2,"Дорожный рабочий",28625,"Гулькин Александр Геннадьевич "]
[21,"Дорожные рабочие",2,"Дорожный рабочий",35036,"Дьячков Геннадий Николаевич"]
[1,"Дорожные рабочие",null,"Дорожный рабочий"]
[13,"Дорожные рабочие",1,"Дорожный рабочий",27403,"Ковалев Василий Николаевич"]
[23,"Дорожные рабочие",2,"Дорожный рабочий",31314,"Котов Алексей Петрович"]
[19,"Дорожные рабочие",2,"Дорожный рабочий",42381,"Кравченко Василий Иванович"]
[7,"Дорожные рабочие",1,"Дорожный рабочий",31130,"Крутилин Станислав Валерьевич"]
[14,"Дорожные рабочие",null,"Дорожный рабочий"]
[15,"Дорожные рабочие",1,"Дорожный рабочий",28200,"Маргун Евгений Викторович "]
[18,"Дорожные рабочие",1,"Дорожный рабочий",28383,"Никитенко Андрей Николаевич "]
[16,"Дорожные рабочие",2,"Дорожный рабочий",30675,"Пасюта  Олег Михайлович"]
[16,"Дорожные рабочие",1,"Дорожный рабочий",42868,"Паюршин Александр Владимирович"]
[10,"Дорожные рабочие",1,"Дорожный рабочий",33491,"Петров Артем Сергеевич"]
[12,"Дорожные рабочие",1,"Дорожный рабочий",27407,"Повага Артем Валерьевич"]
[9,"Дорожные рабочие",1,"Дорожный рабочий",28962,"Радченко Сергей Александрович"]
[20,"Дорожные рабочие",2,"Дорожный рабочий",28467,"Сорвин Игорь Игоревич "]
[2,"Дорожные рабочие",2,"Дорожный рабочий",42636,"Таперко Роман Владимирович"]
[22,"Дорожные рабочие",1,"Дорожный рабочий",30401,"Фролов Андрей Николаевич"]

{"sheet":"Наряд допуск","index":2,"n_rows":108,"n_cols":49,"rows_kept":108,"cut":false,"hidden":false,"merged":[[105,0,105,44],[107,0,107,44],[106,13,106,27],[104,9,104,26],[102,10,102,11],[102,14,102,15],[102,22,102,26],[97,0,97,12],[97,13,97,26],[97,27,97,39],[97,40,97,50],[98,0,98,12],[98,13,98,26],[98,27,98,39],[98,40,98,50],[104,33,104,37],[106,33,106,37],[4,0,4,50],[6,0,6,50],[7,0,7,50],[8,0,8,50],[9,0,9,50],[0,0,0,50],[1,0,1,50],[2,0,2,2],[2,6,2,10],[3,0,3,6],[3,10,3,14],[5,0,5,9],[5,10,5,30],[5,31,5,50],[23,0,23,32],[24,0,24,11],[25,0,25,50],[28,0,28,32],[10,0,10,6],[10,7,10,8],[10,11,10,12],[11,0,11,7],[11,8,11,9],[11,12,11,13],[10,19,10,23],[11,20,11,24],[63,22,63,34],[63,35,63,42],[63,43,63,50],[64,22,64,34],[64,35,64,42],[64,43,64,50],[54,32,54,50],[54,13,54,31],[24,12,24,33],[24,34,24,50],[61,22,61,34],[61,35,61,42],[61,43,61,50],[62,22,62,34],[62,35,62,42],[62,43,62,50],[55,0,55,50],[59,0,59,50],[60,0,60,21],[60,22,60,34],[60,35,60,42],[60,43,60,50],[61,0,61,21],[62,0,62,21],[67,22,67,34],[67,35,67,42],[67,43,67,50],[68,22,68,34],[68,35,68,42],[68,43,68,50],[65,22,65,34],[65,35,65,42],[65,43,65,50],[66,22,66,34],[66,35,66,42],[66,43,66,50],[71,22,71,34],[71,35,71,42],[71,43,71,50],[72,22,72,34],[72,35,72,42],[72,43,72,50],[69,22,69,34],[69,35,69,42],[69,43,69,50],[70,22,70,34],[70,35,70,42],[70,43,70,50],[96,0,96,12],[96,13,96,26],[96,27,96,39],[96,40,96,50],[86,0,86,50],[93,0,93,50],[92,0,92,22],[77,22,77,34],[77,35,77,42],[77,43,77,50],[78,22,78,34],[78,35,78,42],[78,43,78,50],[92,23,92,36],[92,43,92,47],[82,43,82,47],[82,10,82,21],[82,22,82,33],[85,43,85,47],[85,9,85,23],[85,24,85,33],[79,22,79,34],[79,35,79,42],[79,43,79,50],[83,0,83,50],[72,0,72,21],[73,0,73,21],[74,0,74,21],[75,0,75,21],[76,0,76,21],[77,0,77,21],[78,0,78,21],[79,0,79,21],[75,22,75,34],[75,35,75,42],[75,43,75,50],[76,22,76,34],[76,35,76,42],[76,43,76,50],[73,22,73,34],[73,35,73,42],[73,43,73,50],[74,22,74,34],[74,35,74,42],[74,43,74,50],[63,0,63,21],[64,0,64,21],[65,0,65,21],[66,0,66,21],[67,0,67,21],[68,0,68,21],[69,0,69,21],[70,0,70,21],[71,0,71,21]]}
["НАРЯД-ДОПУСК №"]
["НА ВЫПОЛНЕНИЕ РАБОТ С ПОВЫШЕННОЙ ОПАСНОСТЬЮ"]
["Выдан",null,null,"\"",{"$f":"Данные!B2","v":"05"},"\"",{"$f":"Данные!C2","v":"апреля"},null,null,null,null,"2020 г."]
["Действителен до ",null,null,null,null,null,null,"\"",{"$f":"Данные!B3","v":"05"},"\"",{"$f":"Данные!C3","v":"апреля"},null,null,null,null,"2020 г."]
[]
["1. Руководителю работ ",null,null,null,null,null,null,null,null,null,{"$f":"Данные!B4","v":"Заместитель начальника участка"},null,null,null,null,null,null,null,null,null,null,null,null,null,null,null,null,null,null,null,null,{"$f":"Данные!C4","v":"Чурсин В.В."}]
["                                       (должность, фамилия и инициалы)"]
["2. На выполнение работ___________________________________________________________________________"]
["                                 (наименование и место производства работ)"]
["__________                        _________________________________________________________________________________"]
["Начало работ в",null,null,null,null,null,null,{"$f":"Данные!B5","v":"08"},null,"час.",null,{"$f":"Данные!C5","v":"00"},null,"мин.",null,null,"\"",{"$f":"Данные!B2","v":"05"},"\"",{"$f":"Данные!C2","v":"апреля"},null,null,null,null,"2020 г."]
["Окончание работ в",null,null,null,null,null,null,null,{"$f":"Данные!B6","v":"10"},null,"час.",null,{"$f":"Данные!C6","v":"00"},null,"мин.",null,null,"\"",{"$f":"Данные!B3","v":"05"},"\"",{"$f":"Данные!C3","v":"апреля"},null,null,null,null,"2020 г."]
[]
["3. Вредные и опасные производственные факторы, которые действуют или могут возникнуть в местах "]
["производства работ:"]
["повышенный уровень шума; повышенный уровень вибрации; отлетающие предметы; движущиеся транспортные  "]
["средства, дорожные машины и механизмы                                                                                                                        "]
["4. До начала производства работ необходимо выполнить следующие мероприятия:"]
["4.1. Проверить состав бригады."]
["4.2. Проверить наличие и состояние средств индивидуальной и коллективной защиты."]
["4.3. Проверить наличие и исправность инструментов (лопата, пика, скребки, метла, совок)."]
["4.4. Проверить исправность средств малой механизации."]
["4.5. Проверить наличие и исправность средств защиты, дорожных знаков, ограждений."]
[]
["Ответственный исполнитель                                                                                   ",null,null,null,null,null,null,null,null,null,null,null,{"$f":"Данные!B4","v":"Заместитель начальника участка"},null,null,null,null,null,null,null,null,null,null,null,null,null,null,null,null,null,null,null,null,null,{"$f":"Данные!C4","v":"Чурсин В.В."}]
["                                 (должность, фамилия и инициалы)"]
[]
["5. В процессе производства работ необходимо выполнять следующие мероприятия:"]
[]
["5.1. Проверить схему ограждений места производства работ."]
["5.2. Контролировать, чтобы члены бригады покидали транспорт только после того, когда будет обеспечена "]
["безопасность выхода."]
["5.3. Контролировать, чтобы члены бригады самовольно не расширяли фронт работ."]
["5.4. Следить за тем, чтобы в зоне разлетающихся осколков асфальта не находились рабочие."]
["5.5. Следить, чтобы во время подъезда автосамосвала люди находились на обочине дороги в поле зрения водителя."]
["5.6. Следить, чтобы очистка кузова автосамосвала от остатков доставленного материала производилась скребками или "]
["лопатой с удлиненной рукояткой в положении стоя с земли."]
["5.7. Следить, чтобы при укладке материалов с применением спецмашин, рабочие находились за пределами опасной "]
["зоны, возникающей в местах работы спецмашин."]
["5.8. Контролировать, чтобы работники не отвлекались во время выполнения работ."]
["5.9. Контролировать, чтобы при перерывах в работе или при переходе с одного места на другое был остановлен "]
["отбойный молоток и прекращена подача сжатого воздуха."]
["5.10. Не допускать подогрев сливного люка емкости для битумно-полимерных мастик открытым огнем."]
["5.11. Не допускать, при переходе с одного места производства работ  на другое,  к работе членов бригады,  не "]
["обеспечив  все меры безопасности. "]
["5.12. Не допускать, чтобы члены бригады переходили дорогу в неустановленных местах."]
["5.13. Не допускать, чтобы дорожные рабочие выходили за установленные ограждения рабочей зоны, на открытую "]
["полосу движения транспорта."]
["5.14.Организовывать и обеспечивать точное и достаточное выполнение мер безопасности при подготовке рабочего "]
["места, производстве работы и ее окончании."]
["5.15.Контролировать, чтобы работники не приближались к автомобилям прикрытия ближе чем на 5 м."]
["5.16.Контролировать правильность применения средств индивидуальной и коллективной защиты."]
["5.17. Контролировать выполнение требований инструкций по охране труда."]
[]
["Ответственный исполнитель                                                                                  ",null,null,null,null,null,null,null,null,null,null,null,null,{"$f":"Данные!B4","v":"Заместитель начальника участка"},null,null,null,null,null,null,null,null,null,null,null,null,null,null,null,null,null,null,{"$f":"Данные!C4","v":"Чурсин В.В."}]
["                                (должность, фамилия и инициалы)"]
[]
[]
[]
["6. Состав исполнителей работ:"]
["Фамилия и инициалы",null,null,null,null,null,null,null,null,null,null,null,null,null,null,null,null,null,null,null,null,null,"Профессия и должность",null,null,null,null,null,null,null,null,null,null,null,null,"Подпись лица, проводившего инструктаж",null,null,null,null,null,null,null,"Подпись лица, получившего инструктаж"]
[]
[]
[]
[]
[]
[]
[]
[]
[]
[]
[]
[]
[]
[]
[]
[]
[]
[]
[]
[]
[]
["7. Наряд-допуск выдал  ",null,null,null,null,null,null,null,null,null,{"$f":"Данные!B7","v":"Начальник участка"},null,null,null,null,null,null,null,null,null,null,null,{"$f":"Данные!C7","v":"Скоробогатько И.Ю."},null,null,null,null,null,null,null,null,null,null,null,null,null,null,null,null,null,"\"",{"$f":"Данные!B2","v":"05"},"\"",{"$f":"Данные!C2","v":"апреля"},null,null,null,null,"2020 г."]
["            (должность, фамилия и инициалы лица, уполномоченного приказом работодателя, подпись, дата)"]
[]
["Наряд допуск-принял                                                                                                                                                                               ",null,null,null,null,null,null,null,null,{"$f":"Данные!B4","v":"Заместитель начальника участка"},null,null,null,null,null,null,null,null,null,null,null,null,null,null,{"$f":"Данные!C4","v":"Чурсин В.В."},null,null,null,null,null,null,null,null,null,null,null,null,null,null,null,"\"",{"$f":"Данные!B2","v":"05"},"\"",{"$f":"Данные!C2","v":"апреля"},null,null,null,null,"2020 г."]
["                                      (должность, фамилия и инициалы, подпись, дата)"]
[]
["8. Мероприятия, обеспечивающие безопасность работ, выполнены. Члены бригады с  "]
["особенностями работы ознакомлены. Рабочее место подготовлено для ведения работ."]
[]
["Разрешаю приступить к выполнению работ"]
[{"$f":"Данные!B4","v":"Заместитель начальника участка"},null,null,null,null,null,null,null,null,null,null,null,null,null,null,null,null,null,null,null,null,null,null,{"$f":"Данные!C4","v":"Чурсин В.В."},null,null,null,null,null,null,null,null,null,null,null,null,null,null,null,null,"\"",{"$f":"Данные!B2","v":"05"},"\"",{"$f":"Данные!C2","v":"апреля"},null,null,null,null,"2020 г."]
["                         (должность, фамилия и инициалы, подпись, дата) "]
[]
["9.Изменение в составе исполнителей работ."]
["Введен в состав бригады (фамилия и инициалы)",null,null,null,null,null,null,null,null,null,null,null,null,"Выведен из состава бригады (фамилия и инициалы)",null,null,null,null,null,null,null,null,null,null,null,null,null,"Дата и время",null,null,null,null,null,null,null,null,null,null,null,null,"Разрешил  (подпись, фамилия и инициалы)"]
[]
[]
[" "]
["10.Работы завершены рабочие места убраны, работники с места производства работ выведены. Наряд-допуск закрыт"]
[]
["Наряд-допуск закрыт в",null,null,null,null,null,null,null,null,null,{"$f":"Данные!B6","v":"10"},null,"час.",null,{"$f":"Данные!C6","v":"00"},null,"мин.",null,null,"\"",{"$f":"Данные!B3","v":"05"},"\"",{"$f":"Данные!C3","v":"апреля"},null,null,null,null,"2020 г."]
[]
["Руководитель работ ",null,null,null,null,null,null,null,null,null,null,null,null,null,null,null,null,null,null,null,null,null,null,null,null,null,null,null,null,null,"\"",{"$f":"Данные!B3","v":"05"},"\"",{"$f":"Данные!C3","v":"апреля"},null,null,null,null,"2020 г."]
["                                              (подпись, дата)"]
["Лицо, выдавшее наряд-допуск __________________________________________________________",null,null,null,null,null,null,null,null,null,null,null,null,null,null,null,null,null,null,null,null,null,null,null,null,null,null,null,null,null,"\"",{"$f":"Данные!B3","v":"05"},"\"",{"$f":"Данные!C3","v":"апреля"},null,null,null,null,"2020 г."]
["                                            (подпись, дата)"]